lending/lending_fUSD_20240605
["ID","MTS","AMOUNT","RATE_DAILY","PERIOD"]
[328600130,1717595447899,-153.57125836,0.00029318,2]
[328600131,1717595447909,-160.64,0.0002936,2]
[328600132,1717595447919,-150.0,0.0002936,2]
[328600133,1717595447928,-51.6114833,0.0002936,2]
[328600134,1717595448010,-98.3885167,0.0002936,2]
[328600135,1717595448019,-150.0,0.0002936,2]
[328600136,1717595448028,-150.0,0.0002936,2]
[328600137,1717595448037,-4685.958675,0.000294,2]
[328600138,1717595448047,-500.0,0.000294,2]
[328600139,1717595448056,-1052.97862521,0.000294,2]
[328600140,1717595448066,-583.71513992,0.0002948,2]
[328600141,1717595448076,-3392.7313998,0.0002948,2]
[328600142,1717595448088,-949.7866722,0.0002948,2]
[328600143,1717595448110,-1266.0,0.0002948,2]
[328600144,1717595448277,-3028.36780839,0.0002948,2]
[328600145,1717595474518,492.10282983,0.00021217,2]
[328600146,1717595486365,1328.08218191,0.000192,2]
[328600147,1717595486387,1459.77300412,0.000192,2]
[328600150,1717595546761,506.32296391,0.00017259,2]
[328600151,1717595610306,-533.89887839,0.00029578,30]
[328600152,1717595610563,-275.34,0.00029808,30]
[328600153,1717595610596,-1141.72338324,0.00029999,30]
[328600154,1717595610633,-250.0,0.0003,30]
[328600155,1717595610664,-2000.0,0.0003,30]
[328600156,1717595633396,260.55,0.00027342,120]
[328600157,1717595666569,-536.80761757,0.00030712,30]
[328600158,1717595666598,-10055.891439,0.000308,30]
[328600159,1717595666628,-10055.891439,0.000308,30]
[328600161,1717596340164,-176.371291,0.00017257,2]
[328600162,1717596340189,-53.31567068,0.00017258,2]
[328600163,1717596430097,-734.07921857,0.00017259,2]
[328600164,1717596430119,-618.21,0.0002425,2]
[328600165,1717596430141,-247.24,0.00024384,2]
[328600166,1717596430162,-1250.0,0.00025,2]
[328600167,1717596430182,-492.380598,0.00025383,2]
[328600168,1717596430203,-250.0,0.00025511,2]
[328600169,1717596430224,-150.99,0.00025511,2]
[328600170,1717596430246,-499.99,0.00025511,2]
[328600171,1717596430268,-150.0,0.00025651,2]
[328600172,1717596430291,-10526.82957011,0.00025725,2]
[328600173,1717596443111,-249.10070644,0.00025725,2]
[328600180,1717596548244,-108042.76124788,0.00025725,2]
[328600181,1717596606971,587.29,0.00024074,2]
[328600182,1717596617226,157.93,0.00024384,2]
[328600191,1717596631561,-1612.4056553,0.00025725,2]
[328600193,1717596631573,-1412.97156,0.00025725,2]
[328600195,1717596631585,-1528.35103245,0.00025725,2]
[328600196,1717596631916,-2796.76,0.00025725,2]
[328600197,1717596631928,-536.89479921,0.00025725,2]
[328600198,1717596631956,-2129.99388,0.00025725,2]
[328600199,1717596631967,-3244.55441955,0.00025725,2]
[328600200,1717596632056,-810.86729719,0.00025725,2]
[328600203,1717596632067,-277.62728332,0.00025725,2]
[328600215,1717596637967,-511.44843516,0.00025725,2]
[328600218,1717596637978,-72546.29584577,0.00025725,2]
[328600220,1717596637989,-12217.20184874,0.00025725,2]
[328600222,1717596638001,-3652.80990707,0.00025725,2]
[328600224,1717596638012,-349.235,0.00025725,2]
[328600227,1717596638024,-9732.96927663,0.00025725,2]
[328600231,1717596638053,-78435.00795169,0.00025725,2]
[328600233,1717596638062,-13124.06972345,0.00025725,2]
[328600234,1717596638071,-564.53,0.00025747,2]
[328600237,1717596638080,-250.0,0.00025891,2]
[328600238,1717596638090,-1100.88,0.00025975,2]
[328600241,1717596638099,-2057.0,0.00026168,2]
[328600242,1717596638109,-150.99,0.00026168,2]
[328600245,1717596638119,-1000.0,0.00026178,2]
[328600247,1717596638129,-313.34,0.00026262,2]
[328600249,1717596638138,-250.0,0.00026262,2]
[328600251,1717596638150,-38240.1001,0.00026321,2]
[328600253,1717596638159,-193.99,0.00026321,2]
[328600255,1717596638169,-7175.0416,0.00026321,2]
[328600257,1717596638179,-11588.3182,0.00026321,2]
[328600259,1717596638187,-2500.0,0.00026321,2]
[328600261,1717596638196,-2000.0,0.00026324,3]
[328600263,1717596638206,-587.29,0.00026338,2]
[328600265,1717596638215,-1317.53850883,0.00026414,2]
[328600267,1717596638224,-504.85882592,0.00026414,2]
[328600269,1717596638233,-330.06276601,0.00026414,2]
[328600271,1717596638242,-755.4,0.00026421,2]
[328600273,1717596638251,-14196.23431978,0.00026421,2]
[328600275,1717596638263,-81344.00584168,0.00026421,2]
[328600277,1717596638274,-679.23079697,0.00026421,2]
[328600484,1717596640391,-8388.5,0.00026421,2]
[328600488,1717596640405,-140392.02904157,0.00026421,2]
[328600491,1717596640415,-155.24904908,0.00026521,2]
[328600493,1717596640423,-1317.53850878,0.00026801,2]
[328600495,1717596640432,-504.85882586,0.00026801,2]
[328600497,1717596640441,-1317.53850878,0.00027189,2]
[328600499,1717596640451,-504.85882586,0.00027189,2]
[328600501,1717596640460,-169.31,0.00027309,2]
[328600503,1717596640468,-163.09,0.00027314,2]
[328600505,1717596640478,-150.0,0.00027397,2]
[328600507,1717596640487,-154.71996748,0.00027547,2]
[328600509,1717596640496,-1317.53850878,0.00027576,2]
[328600511,1717596640505,-504.85882586,0.00027576,2]
[328600513,1717596640514,-150.0,0.00027682,2]
[328600515,1717596640523,-1797.92,0.0002774,2]
[328600517,1717596640532,-1797.92,0.00027747,2]
[328600519,1717596640541,-1797.92,0.00027755,2]
[328600521,1717596640550,-1797.92,0.00027762,2]
[328600523,1717596640559,-1797.92,0.00027769,2]
[328600525,1717596640568,-1797.92,0.00027776,2]
[328600527,1717596640577,-1797.92,0.00027784,2]
[328600529,1717596640586,-1797.92,0.00027791,2]
[328600531,1717596640595,-1797.92,0.00027798,2]
[328600533,1717596640604,-1797.92,0.00027806,2]
[328600535,1717596640614,-1797.92,0.00027813,2]
[328600537,1717596640623,-1797.92,0.0002782,2]
[328600539,1717596640631,-1797.92,0.00027827,2]
[328600541,1717596640640,-186.817728,0.00027832,2]
[328600543,1717596640652,-1797.92,0.00027835,2]
[328600545,1717596640661,-1797.92,0.00027842,2]
[328600547,1717596640670,-1797.92,0.00027849,2]
[328600549,1717596640680,-1797.92,0.00027857,2]
[328600551,1717596640689,-1797.92,0.00027864,2]
[328600552,1717596640698,-1797.92,0.00027871,2]
[328600555,1717596640707,-1797.92,0.00027878,2]
[328600556,1717596640716,-154.32889975,0.00027932,2]
[328600558,1717596640726,-1317.53850878,0.00027963,2]
[328600561,1717596640735,-504.85882586,0.00027963,2]
[328600562,1717596640745,-154.32889975,0.00027968,2]
[328600565,1717596640754,-154.2167748,0.00028071,2]
[328600567,1717596640764,-180.12825996,0.00028089,2]
[328600568,1717596640773,-1953.21737,0.0002809,2]
[328600571,1717596640782,-173.579838,0.0002809,2]
[328600573,1717596640792,-180.851123,0.0002809,2]
[328600575,1717596640801,-246.193774,0.0002809,2]
[328600577,1717596640811,-426.824708,0.0002809,2]
[328600578,1717596640820,-1214.822788,0.0002809,2]
[328600580,1717596640830,-151.5845339,0.00028257,2]
[328600583,1717596640840,-1030.041,0.00028276,2]
[328600585,1717596640849,-3738.377,0.00028276,2]
[328600587,1717596640860,-2892.918,0.00028276,2]
[328600588,1717596640871,-38015.0,0.00028276,2]
[328600590,1717596640880,-1064.0,0.00028276,2]
[328600592,1717596640889,-1317.53850878,0.00028351,2]
[328600594,1717596640900,-504.85882586,0.00028351,2]
[328600596,1717596640909,-156.52286604,0.00028409,2]
[328600598,1717596640918,-1953.21737,0.00028441,2]
[328600600,1717596640927,-426.824708,0.00028441,2]
[328600603,1717596640940,-1214.822788,0.00028441,2]
[328600605,1717596640949,-4502.60568867,0.00028469,2]
[328600607,1717596640958,-151.5845339,0.00028491,2]
[328600608,1717596640968,-150.0,0.00028504,2]
[328600610,1717596640977,-150.522,0.00028504,2]
[328600612,1717596640986,-150.995,0.00028504,2]
[328600614,1717596640995,-247.506,0.00028504,2]
[328600616,1717596641005,-168.348,0.00028504,2]
[328600618,1717596641014,-441.0,0.00028504,2]
[328600620,1717596641023,-615.0,0.00028504,2]
[328600622,1717596641033,-1267.0,0.00028504,2]
[328600624,1717596641042,-1648.0,0.00028504,2]
[328600626,1717596641051,-175.616,0.00028504,2]
[328600628,1717596641061,-446.0,0.00028504,2]
[328600630,1717596641070,-2426.215,0.00028504,2]
[328600632,1717596641078,-152.188,0.00028504,2]
[328600651,1717596641240,-817.746,0.00028504,2]
[328600653,1717596641250,-167.324,0.00028504,2]
[328600656,1717596641260,-1412.105,0.00028504,2]
[328600658,1717596641270,-2544.0,0.00028504,2]
[328600660,1717596641279,-266.770343,0.00028504,7]
[328600662,1717596641289,-587.29,0.00028602,2]
[328600664,1717596641298,-151.5845339,0.00028612,2]
[328600666,1717596641307,-180.0,0.00028674,2]
[328600668,1717596641316,-300.0,0.000287,10]
[328600670,1717596641326,-1317.53850878,0.00028738,2]
[328600672,1717596641335,-504.85882586,0.00028738,2]
[328600674,1717596641344,-173.579838,0.00028793,2]
[328600676,1717596641354,-1953.21737,0.00028793,2]
[328600678,1717596641363,-426.824708,0.00028793,2]
[328600680,1717596641373,-1214.822788,0.00028793,2]
[328600682,1717596641382,-700.0,0.000288,10]
[328600684,1717596641391,-154.8075147,0.00028893,2]
[328600686,1717596641403,-1000.0,0.000289,10]
[328600688,1717596641412,-7500.0,0.000289,2]
[328600690,1717596641421,-2057.0,0.00028908,2]
[328600692,1717596641430,-156.46370926,0.00028995,4]
[328600694,1717596641439,-1001.2254,0.00028999,2]
[328600696,1717596641449,-150.0,0.00029,2]
[328600698,1717596641458,-12703.79393893,0.00029,3]
[328600700,1717596641467,-4166.39963549,0.00029,2]
[328600701,1717596641476,-1487.32527952,0.00029,2]
[328600703,1717596641485,-295.57247308,0.00029,2]
[328600706,1717596641495,-295.57247308,0.00029,2]
[328600708,1717596641504,-295.57247308,0.00029,2]
[328600710,1717596641513,-295.57247308,0.00029,2]
[328600712,1717596641522,-295.57247308,0.00029,2]
[328600714,1717596641531,-295.57247308,0.00029,2]
[328600716,1717596641542,-295.57247308,0.00029,2]
[328600718,1717596641551,-295.57247308,0.00029,2]
[328600720,1717596641561,-295.57247308,0.00029,2]
[328600722,1717596641571,-295.57247308,0.00029,2]
[328600724,1717596641580,-295.57247308,0.00029,2]
[328600726,1717596641589,-295.57247308,0.00029,2]
[328600728,1717596641598,-295.57247308,0.00029,2]
[328600730,1717596641607,-295.57247308,0.00029,2]
[328600732,1717596641618,-295.57247308,0.00029,2]
[328600734,1717596641627,-295.57247308,0.00029,2]
[328600736,1717596641636,-295.57247308,0.00029,2]
[328600738,1717596641645,-295.57247308,0.00029,2]
[328600739,1717596641656,-295.57247308,0.00029,2]
[328600741,1717596641667,-295.57247308,0.00029,2]
[328600744,1717596641676,-295.57247308,0.00029,2]
[328600746,1717596641686,-295.57247308,0.00029,2]
[328600748,1717596641695,-295.57247308,0.00029,2]
[328600749,1717596641705,-295.57247308,0.00029,2]
[328600750,1717596641717,-295.57247308,0.00029,2]
[328600751,1717596641726,-295.57247308,0.00029,2]
[328600752,1717596641735,-295.57247308,0.00029,2]
[328600753,1717596641744,-295.57247308,0.00029,2]
[328600754,1717596641752,-295.57247308,0.00029,2]
[328600755,1717596641761,-295.57247308,0.00029,2]
[328600756,1717596641770,-295.57247308,0.00029,2]
[328600757,1717596641779,-412.75360643,0.00029097,2]
[328600758,1717596641788,-1317.53850878,0.00029125,15]
[328600759,1717596641797,-504.85882586,0.00029125,15]
[328600760,1717596641806,-1953.21737,0.00029144,2]
[328600762,1717596641815,-426.824708,0.00029144,2]
[328600764,1717596641824,-1214.822788,0.00029144,2]
[328600766,1717596641833,-1051.66,0.00029178,2]
[328600768,1717596641842,-161.66416288,0.00029185,3]
[328600770,1717596641851,-1736.62141,0.0002919,2]
[328600772,1717596641864,-1400.0,0.000292,10]
[328600774,1717596641874,-151.5845339,0.00029202,2]
[328600776,1717596641883,-150.1199722,0.00029289,2]
[328600778,1717596641892,-167.48,0.00029291,2]
[328600780,1717596641905,-500.0,0.00029293,2]
[328600782,1717596641916,-200.0,0.00029293,2]
[328600784,1717596641925,-1700.0,0.000293,10]
[328600786,1717596641935,-500.0,0.0002934,2]
[328600788,1717596641945,-151.74,0.00029378,2]
[328600790,1717596641956,-151.74,0.00029378,2]
[328600792,1717596641965,-151.74,0.00029378,2]
[328600794,1717596641975,-186.817728,0.00029379,2]
[328600796,1717596641985,-151.74,0.00029379,2]
[328600798,1717596641994,-151.74,0.00029379,2]
[328600800,1717596642004,-151.74,0.00029379,2]
[328600802,1717596642013,-151.74,0.00029379,2]
[328600804,1717596642022,-151.74,0.00029379,2]
[328600806,1717596642031,-174.41961829,0.00029386,2]
[328600808,1717596642041,-151.0,0.00029388,7]
[328600810,1717596642050,-248.26652278,0.00029388,2]
[328600812,1717596642059,-399.86391689,0.00029388,2]
[328600814,1717596642068,-32233.17929237,0.00029389,13]
[328600817,1717596642082,-302.60423867,0.00029389,13]
[328600819,1717596642093,-29681.59744606,0.00029389,13]
[328600821,1717596642104,-76048.09930233,0.00029389,13]
[328600826,1717596642143,-295.57247308,0.00029,2]
[328600829,1717596642155,-295.57247308,0.00029,2]
[328600831,1717596642165,-299.68584412,0.00029389,13]
[328600833,1717596642176,-724.54098102,0.00029389,13]
[328600835,1717596642187,-751.980007,0.00029389,13]
[328600915,1717596642732,-25.52077358,0.00029,2]
[328601036,1717596643878,-270.0516995,0.00029,2]
[328601038,1717596643888,-295.57247308,0.00029,2]
[328601040,1717596643897,-295.57247308,0.00029,2]
[328601043,1717596643911,-295.57247308,0.00029,2]
[328601045,1717596643920,-295.57247308,0.00029,2]
[328601047,1717596643930,-295.57247308,0.00029,2]
[328601049,1717596643940,-295.57247308,0.00029,2]
[328601051,1717596643951,-295.57247308,0.00029,2]
[328601053,1717596643960,-295.57247308,0.00029,2]
[328601055,1717596643969,-295.57247308,0.00029,2]
[328601057,1717596643978,-295.57247308,0.00029,2]
[328601059,1717596643987,-9083.02187463,0.00029389,13]
[328601074,1717596644123,-295.57247308,0.00029,2]
[328601076,1717596644132,-295.57247308,0.00029,2]
[328601078,1717596644141,-1173.89095384,0.00029389,13]
[328601103,1717596649034,-295.57247308,0.00029,2]
[328601105,1717596649043,-241.2560017,0.00029,2]
[328601106,1717596649054,-54.31647138,0.00029,2]
[328601108,1717596649063,-295.57247308,0.00029,2]
[328601110,1717596649072,-295.57247308,0.00029,2]
[328601112,1717596649082,-295.57247308,0.00029,2]
[328601114,1717596649091,-295.57247308,0.00029,2]
[328601116,1717596649100,-295.57247308,0.00029,2]
[328601118,1717596649109,-295.57247308,0.00029,2]
[328601119,1717596649118,-295.57247308,0.00029,2]
[328601120,1717596649127,-295.57247308,0.00029,2]
[328601121,1717596649136,-295.57247308,0.00029,2]
[328601122,1717596649145,-295.57247308,0.00029,2]
[328601123,1717596649156,-295.57247308,0.00029,2]
[328601125,1717596649165,-295.57247308,0.00029,2]
[328601127,1717596649174,-295.57247308,0.00029,2]
[328601129,1717596649184,-295.57247308,0.00029,2]
[328601131,1717596649193,-295.57247308,0.00029,2]
[328601133,1717596649202,-295.57247308,0.00029,2]
[328601135,1717596649211,-295.57247308,0.00029,2]
[328601137,1717596649220,-295.57247308,0.00029,2]
[328601139,1717596649230,-295.57247308,0.00029,2]
[328601141,1717596649239,-295.57247308,0.00029,2]
[328601143,1717596649249,-295.57247308,0.00029,2]
[328601145,1717596649258,-295.57247308,0.00029,2]
[328601147,1717596649267,-295.57247308,0.00029,2]
[328601149,1717596649276,-295.57247308,0.00029,2]
[328601151,1717596649285,-295.57247308,0.00029,2]
[328601153,1717596649295,-103185.36516834,0.00029389,13]
[328601171,1717596649460,-295.57247308,0.00029,2]
[328601173,1717596649469,-1187.22059723,0.00029389,13]
[328601176,1717596649481,-780.89183541,0.00029389,13]
[328601180,1717596649492,-4400.94956736,0.00029389,13]
[328601183,1717596649503,-37915.00000026,0.00029389,13]
[328601187,1717596649535,-295.57247308,0.00029,2]
[328601189,1717596649545,-295.57247308,0.00029,2]
[328601191,1717596649554,-1539.42386397,0.00029389,13]
[328601194,1717596649565,-7085.1,0.00029389,13]
[328601196,1717596649576,-3946.5,0.00029389,13]
[328601198,1717596649587,-7265.7,0.00029389,13]
[328601200,1717596649598,-3543.61502571,0.00029389,13]
[328601202,1717596649608,-57261.7840141,0.00029389,13]
[328601204,1717596649619,-500.0,0.00029389,13]
[328601206,1717596649630,-7053.0,0.00029389,13]
[328601207,1717596809264,158.95,0.00027788,120]
[328601210,1717596933617,10000.0,0.00029,90]
[328601211,1717596971319,10000.0,0.00029,90]
[328601215,1717597635214,-862.13999275,0.00017259,2]
[328601216,1717597635239,-1000.0,0.0002,10]
[328601217,1717597635264,-4467.30344529,0.00022307,2]
[328601218,1717597644117,-552.76277533,0.00022307,2]
[328601219,1717597644140,-194.95,0.00024384,2]
[328601220,1717597644163,-150.99,0.00024407,2]
[328601221,1717597644187,-499.99,0.00024407,2]
[328601222,1717597644213,-532.38,0.00024407,2]
[328601223,1717597644237,-250.0,0.00025391,2]
[328601224,1717597644265,-169.31,0.00025486,2]
[328601225,1717597644286,-3313.62336622,0.00025525,2]
[328601226,1717597647102,-1749.99,0.00025525,2]
[328601227,1717597754279,-1250.0,0.00025,2]
[328601228,1717597770084,-9210.9264,0.00025525,2]
[328601229,1717597772100,-6835.99405867,0.00025525,2]
[328601230,1717597776341,505.76,0.00025005,2]
[328601231,1717597791960,155.66,0.00024384,2]
[328601234,1717597831829,-706.0092,0.00025525,2]
[328601235,1717597832063,-279.47601385,0.00025525,2]
[328601236,1717597832075,-1574.3383352,0.00025525,2]
[328601237,1717597832087,-4888.75772606,0.00025525,2]
[328601238,1717597832096,-152.20193344,0.00025525,2]
[328601239,1717597832106,-263.50770181,0.00025525,2]
[328601240,1717597832116,-28141.5926834,0.00025581,2]
[328601241,1717597832127,-250.0,0.00025599,2]
[328601242,1717597832136,-500.0,0.00025625,2]
[328601243,1717597832147,-70604.69221786,0.00025625,2]
[328601244,1717597832159,-7041.1,0.00025625,2]
[328601245,1717597832170,-265.65120639,0.00025625,2]
[328601246,1717597832290,-500.0,0.00025625,2]
[328601247,1717597832314,-1192.8949193,0.00025625,2]
[328601248,1717597832326,-165395.66165645,0.00025625,2]
[328601249,1717597832336,-7859.9289,0.00025625,2]
[328601250,1717597832346,-8556.0,0.00025951,2]
[328601251,1717597832356,-156.67,0.00025967,2]
[328601252,1717597832365,-152.20193341,0.00026011,2]
[328601253,1717597832375,-263.50770175,0.00026011,2]
[328601254,1717597832384,-1236.2806,0.0002632,2]
[328601255,1717597832393,-152.20193341,0.00026497,2]
[328601256,1717597832404,-263.50770175,0.00026497,2]
[328601257,1717597832413,-250.0,0.00026875,2]
[328601258,1717597832422,-1282.5,0.00026943,2]
[328601259,1717597832431,-152.20193341,0.00026983,2]
[328601260,1717597832441,-263.50770175,0.00026983,2]
[328601261,1717597832450,-1000.0,0.00027191,2]
[328601262,1717597832460,-505.76,0.00027269,2]
[328601263,1717597832470,-163.09,0.00027278,2]
[328601264,1717597832479,-152.20193341,0.00027469,2]
[328601265,1717597832489,-263.50770175,0.00027469,2]
[328601266,1717597832498,-155.79237662,0.00027551,2]
[328601267,1717597832507,-4989.24,0.00027701,2]
[328601268,1717597832517,-155.79237662,0.00027873,2]
[328601269,1717597832526,-151.58453391,0.00027923,2]
[328601270,1717597832535,-152.20193341,0.00027956,2]
[328601271,1717597832546,-263.50770175,0.00027956,2]
[328601272,1717597832555,-167.9,0.00028016,2]
[328601273,1717597832564,-154.1054914,0.00028046,2]
[328601274,1717597832573,-1789.881681,0.0002809,2]
[328601275,1717597832582,-186.101951,0.0002809,2]
[328601276,1717597832591,-180.851124,0.0002809,2]
[328601277,1717597832600,-2634.427178,0.0002809,2]
[328601278,1717597832609,-179.831585,0.0002809,2]
[328601279,1717597832618,-2345.735879,0.0002809,2]
[328601280,1717597832627,-152.656571,0.0002809,2]
[328601281,1717597832636,-2505.73,0.00028179,2]
[328601282,1717597832645,-2505.73,0.00028247,2]
[328601283,1717597832657,-1605.45521471,0.00028341,2]
[328601284,1717597832666,-1049.79768608,0.0002842,2]
[328601285,1717597832676,-1000.27837673,0.0002842,2]
[328601286,1717597832686,-1033.82406917,0.0002842,2]
[328601287,1717597832695,-1141.99048922,0.0002842,2]
[328601288,1717597832705,-1789.881681,0.00028441,2]
[328601289,1717597832714,-2634.427178,0.00028441,2]
[328601290,1717597832723,-2345.735879,0.00028441,2]
[328601291,1717597832733,-152.20193341,0.00028442,2]
[328601292,1717597832743,-263.50770175,0.00028442,2]
[328601293,1717597832752,-1605.45521465,0.00028544,2]
[328601294,1717597832761,-872.63,0.0002863,2]
[328601295,1717597832770,-416.97,0.0002863,2]
[328601296,1717597832779,-872.63,0.0002863,2]
[328601297,1717597832788,-416.97,0.0002863,2]
[328601298,1717597832798,-872.63,0.0002863,2]
[328601299,1717597832807,-416.97,0.0002863,2]
[328601300,1717597832816,-872.63,0.0002863,2]
[328601301,1717597832825,-416.97,0.0002863,2]
[328601302,1717597832835,-872.63,0.0002863,2]
[328601303,1717597832844,-416.97,0.0002863,2]
[328601304,1717597832853,-872.63,0.0002863,2]
[328601305,1717597832862,-832.61,0.0002863,2]
[328601306,1717597832872,-872.63,0.0002863,2]
[328601307,1717597832882,-500.0,0.00028641,2]
[328601308,1717597832891,-236.20903743,0.00028641,2]
[328601309,1717597832902,-808.0,0.00028642,2]
[328601310,1717597832911,-164.0,0.00028642,2]
[328601311,1717597832920,-2398.0,0.00028642,2]
[328601312,1717597832928,-446.0,0.00028642,2]
[328601313,1717597832938,-216.0,0.00028642,2]
[328601314,1717597832947,-170.571,0.00028642,2]
[328601315,1717597832956,-659.132,0.00028642,2]
[328601316,1717597832965,-3278.613,0.00028642,2]
[328601317,1717597832975,-1064.0,0.00028642,2]
[328601318,1717597832984,-358.0,0.00028642,2]
[328601319,1717597832993,-5149.0,0.00028642,2]
[328601320,1717597833003,-875.827,0.00028642,2]
[328601321,1717597833012,-1470.0,0.00028642,2]
[328601322,1717597833021,-38015.0,0.00028642,2]
[328601323,1717597833030,-151.25620831,0.00028656,2]
[328601324,1717597833039,-200.0,0.000287,10]
[328601325,1717597833049,-1605.45521465,0.00028746,2]
[328601326,1717597833058,-525.57,0.00028767,2]
[328601327,1717597833067,-150.0,0.00028767,2]
[328601328,1717597833076,-239.42,0.00028767,2]
[328601329,1717597833086,-163.95,0.00028767,2]
[328601330,1717597833095,-150.0,0.00028767,2]
[328601331,1717597833105,-150.0,0.00028767,2]
[328601332,1717597833114,-150.63,0.00028767,2]
[328601333,1717597833124,-353.04,0.00028767,2]
[328601334,1717597833133,-422.0,0.00028767,2]
[328601335,1717597833143,-150.0,0.00028767,2]
[328601336,1717597833152,-150.0,0.00028767,2]
[328601337,1717597833162,-150.0,0.00028767,2]
[328601338,1717597833172,-150.0,0.00028767,2]
[328601339,1717597833182,-150.0,0.00028767,2]
[328601340,1717597833191,-353.04,0.00028767,2]
[328601341,1717597833200,-422.2,0.00028767,2]
[328601342,1717597833209,-300.0,0.00028767,2]
[328601343,1717597833218,-150.0,0.00028767,2]
[328601344,1717597833227,-164.02,0.00028767,2]
[328601345,1717597833236,-525.83,0.00028767,2]
[328601346,1717597833247,-150.0,0.00028767,2]
[328601347,1717597833259,-422.2,0.00028767,2]
[328601348,1717597833268,-150.0,0.00028767,2]
[328601349,1717597833278,-150.0,0.00028767,2]
[328601350,1717597833288,-353.04,0.00028767,2]
[328601351,1717597833298,-525.83,0.00028767,2]
[328601352,1717597833307,-150.0,0.00028767,2]
[328601353,1717597833317,-150.0,0.00028767,2]
[328601354,1717597833328,-164.02,0.00028767,2]
[328601355,1717597833338,-150.0,0.00028767,2]
[328601356,1717597833347,-150.0,0.00028767,2]
[328601357,1717597833356,-164.02,0.00028767,2]
[328601358,1717597833366,-150.0,0.00028767,2]
[328601359,1717597833375,-353.04,0.00028767,2]
[328601360,1717597833384,-422.2,0.00028767,2]
[328601361,1717597833393,-150.0,0.00028767,2]
[328601362,1717597833403,-525.83,0.00028767,2]
[328601363,1717597833412,-422.2,0.00028767,2]
[328601364,1717597833422,-353.04,0.00028767,2]
[328601365,1717597833431,-150.0,0.00028767,2]
[328601366,1717597833441,-150.0,0.00028767,2]
[328601367,1717597833450,-150.0,0.00028767,2]
[328601368,1717597833460,-164.02,0.00028767,2]
[328601369,1717597833469,-150.0,0.00028767,2]
[328601370,1717597833481,-150.0,0.00028767,2]
[328601371,1717597833490,-525.83,0.00028767,2]
[328601372,1717597833499,-150.0,0.00028767,2]
[328601373,1717597833508,-150.0,0.00028767,2]
[328601374,1717597833518,-150.0,0.00028767,2]
[328601375,1717597833527,-525.83,0.00028767,2]
[328601376,1717597833536,-422.2,0.00028767,2]
[328601377,1717597833666,-164.02,0.00028767,2]
[328601378,1717597833676,-353.04,0.00028767,2]
[328601379,1717597833685,-422.2,0.00028767,2]
[328601380,1717597833695,-521.88,0.00028767,2]
[328601381,1717597833704,-150.0,0.00028767,2]
[328601382,1717597833714,-150.0,0.00028767,2]
[328601383,1717597833723,-150.0,0.00028767,2]
[328601384,1717597833733,-150.0,0.00028767,2]
[328601385,1717597833742,-353.04,0.00028767,2]
[328601386,1717597833751,-150.0,0.00028767,2]
[328601387,1717597833760,-164.02,0.00028767,2]
[328601388,1717597833769,-186.101951,0.00028793,2]
[328601389,1717597833778,-1789.881681,0.00028793,2]
[328601390,1717597833787,-2634.427178,0.00028793,2]
[328601391,1717597833796,-2345.735879,0.00028793,2]
[328601392,1717597833809,-500.0,0.000288,10]
[328601393,1717597833831,-1095.46947908,0.00028801,2]
[328601394,1717597833840,-800.0,0.000289,10]
[328601395,1717597833851,-274.51725021,0.000289,2]
[328601396,1717597833872,-325.15290354,0.000289,2]
[328601397,1717597833881,-152.20193341,0.00028928,2]
[328601398,1717597833891,-263.50770175,0.00028928,2]
[328601399,1717597833900,-929.09920929,0.00028995,2]
[328601400,1717597833911,-4222.00838809,0.00029,2]